fUSD/lending_fUSD_20240414
["ID","MTS","AMOUNT","RATE_DAILY","PERIOD"]
[322563864,1713065449828,-405.6958138,0.0003,4]
[322563865,1713065449840,-19322.32211381,0.0003,4]
[322563866,1713065449849,-6944.0450854,0.0003,2]
[322563867,1713065449858,-408.60878994,0.0003,2]
[322563868,1713065449868,-762.78134527,0.0003,2]
[322563869,1713065449879,-374.86497715,0.0003,2]
[322563870,1713065449891,-347.00996361,0.0003,2]
[322563871,1713065449906,-5772.86484399,0.0003,2]
[322563872,1713065449916,-150.0,0.0003,2]
[322563873,1713065449926,-168515.8186173,0.0003,14]
[322563874,1713065449937,-482.0,0.0003,14]
[322563875,1713065449948,-200.0,0.0003,7]
[322563876,1713065449959,-1034.54228715,0.0003,2]
[322563877,1713065449971,-200.0,0.0003,7]
[322563878,1713065449981,-530.43222177,0.0003,4]
[322563879,1713065449992,-150.0,0.0003,2]
[322563880,1713065450003,-13222.75426064,0.0003,4]
[322563881,1713065450014,-2970.07961376,0.0003,4]
[322563882,1713065450026,-200.0,0.0003,2]
[322563883,1713065450036,-2890.836522,0.0003,2]
[322563884,1713065450261,-2514.5589,0.0003,2]
[322563885,1713065450280,-150.0,0.0003,2]
[322563886,1713065450291,-157.041411,0.00030198,15]
[322563887,1713065450302,-150.0,0.0003023,2]
[322563888,1713065450312,-294.81,0.0003023,2]
[322563889,1713065450322,-180.0,0.00030258,2]
[322563890,1713065450332,-152.0,0.00030259,10]
[322563891,1713065450343,-300.0,0.00030269,2]
[322563892,1713065450354,-200.0,0.000303,2]
[322563893,1713065450366,-157.041411,0.00030498,10]
[322563894,1713065450377,-157.041411,0.00030498,9]
[322563895,1713065450388,-152.0,0.00030618,11]
[322563896,1713065450404,-150.0,0.00030941,2]
[322563897,1713065450416,-152.0,0.00030976,12]
[322563898,1713065450427,-451.3974252,0.00031,4]
[322563899,1713065450439,-1157.154191,0.00031,2]
[322563900,1713065450450,-150.0,0.00031,3]
[322563901,1713065450465,-750.0,0.00031,3]
[322563902,1713065450476,-1534.83984,0.00031,2]
[322563903,1713065450487,-1000.0,0.00031018,2]
[322563904,1713065450498,-521.03,0.00031027,2]
[322563905,1713065450509,-236.66,0.00031083,2]
[322563906,1713065450520,-21246.55635483,0.00031088,2]
[322563907,1713065450531,-150.0,0.00031091,2]
[322563908,1713065450542,-167.26,0.00031091,2]
[322563909,1713065450554,-162.41,0.00031091,2]
[322563910,1713065450572,-349.74,0.00031091,2]
[322563911,1713065450584,-150.0,0.00031091,2]
[322563912,1713065450595,-150.0,0.00031091,2]
[322563913,1713065450607,-349.74,0.00031091,2]
[322563914,1713065450618,-521.03,0.00031091,2]
[322563915,1713065450630,-349.74,0.00031091,2]
[322563916,1713065450641,-153.21,0.00031091,2]
[322563917,1713065450656,-162.41,0.00031091,2]
[322563918,1713065450667,-150.0,0.00031091,2]
[322563919,1713065450679,-349.74,0.00031091,2]
[322563920,1713065450690,-521.03,0.00031091,2]
[322563921,1713065450701,-521.03,0.00031091,2]
[322563922,1713065450712,-150.0,0.00031091,2]
[322563923,1713065450725,-162.41,0.00031091,2]
[322563924,1713065450736,-150.0,0.00031091,2]
[322563925,1713065450747,-537.52,0.00031091,2]
[322563926,1713065450757,-521.03,0.00031091,2]
[322563927,1713065450769,-150.0,0.00031091,2]
[322563928,1713065450780,-162.41,0.00031091,2]
[322563929,1713065450792,-1042.06,0.00031091,2]
[322563930,1713065450803,-162.41,0.00031091,2]
[322563931,1713065450814,-150.0,0.00031091,2]
[322563932,1713065450825,-162.41,0.00031091,2]
[322563933,1713065450840,-150.0,0.00031091,2]
[322563934,1713065450852,-162.41,0.00031091,2]
[322563935,1713065450863,-418.29,0.0003118,2]
[322563936,1713065450877,-418.29,0.0003118,2]
[322563937,1713065450888,-418.29,0.0003118,2]
[322563938,1713065450906,-157.041411,0.00031198,15]
[322563939,1713065450919,-152.0,0.00031334,13]
[322563940,1713065450930,-1125.16,0.000314,2]
[322563941,1713065450940,-908.62,0.000314,2]
[322563942,1713065450951,-157.041411,0.00031498,12]
[322563943,1713065450962,-157.041411,0.00031498,11]
[322563944,1713065450973,-178.45,0.00031644,2]
[322563945,1713065450984,-152.0,0.00031692,14]
[322563946,1713065450994,-240.54,0.0003175,2]
[322563947,1713065451004,-150.0,0.0003175,2]
[322563948,1713065451015,-150.0,0.0003175,2]
[322563949,1713065451026,-150.0,0.0003175,2]
[322563950,1713065451037,-150.0,0.0003175,2]
[322563951,1713065451047,-150.0,0.0003175,2]
[322563952,1713065451058,-150.0,0.0003175,2]
[322563953,1713065451071,-150.0,0.0003175,2]
[322563954,1713065451082,-152.29,0.0003175,2]
[322563955,1713065451093,-279.49,0.00031863,2]
[322563956,1713065451103,-418.29,0.00031874,2]
[322563957,1713065451113,-418.29,0.00031874,2]
[322563958,1713065451124,-418.29,0.00031874,2]
[322563959,1713065451139,-418.29,0.00031874,2]
[322563960,1713065451152,-150.0,0.00031913,2]
[322563961,1713065451162,-150.0,0.00031913,2]
[322563962,1713065451172,-150.0,0.00031913,2]
[322563963,1713065451183,-150.0,0.00031913,2]
[322563964,1713065451193,-150.0,0.00031913,2]
[322563965,1713065451203,-300.0,0.00031913,2]
[322563966,1713065451214,-150.0,0.00031941,2]
[322563967,1713065451224,-332.28429954,0.00032,4]
[322563968,1713065451235,-2000.0,0.00032,2]
[322563969,1713065451246,-150.0,0.00032,5]
[322563970,1713065451257,-152.0,0.0003205,15]
[322563971,1713065451268,-157.041411,0.00032198,16]
[322563972,1713065451279,-150.0,0.00032331,2]
[322563973,1713065451292,-150.0,0.00032331,2]
[322563974,1713065451305,-150.0,0.00032331,2]
[322563975,1713065451317,-150.0,0.00032331,2]
[322563976,1713065451327,-152.0,0.00032408,16]
[322563977,1713065451338,-150.0,0.0003245,2]
[322563978,1713065451349,-150.0,0.0003245,2]
[322563979,1713065451360,-150.0,0.0003245,2]
[322563980,1713065451370,-1948.0,0.0003245,2]
[322563981,1713065451382,-730.931,0.0003245,2]
[322563982,1713065451394,-280.0,0.0003245,2]
[322563983,1713065451412,-608.0,0.0003245,2]
[322563984,1713065451428,-436.0,0.0003245,2]
[322563985,1713065451440,-3043.0,0.0003245,2]
[322563986,1713065451451,-1472.0,0.0003245,2]
[322563987,1713065451463,-399.0,0.0003245,2]
[322563988,1713065451475,-1140.0,0.0003245,2]
[322563989,1713065451486,-2440.0,0.0003245,2]
[322563990,1713065451498,-1637.0,0.0003245,2]
[322563991,1713065451509,-443.0,0.0003245,2]
[322563992,1713065451520,-355.0,0.0003245,2]
[322563993,1713065451531,-214.0,0.0003245,2]
[322563994,1713065451542,-1054.0,0.0003245,2]
[322563995,1713065451553,-5719.0,0.0003245,2]
[322563996,1713065451564,-461.0,0.0003245,2]
[322563997,1713065451574,-4803.0,0.0003245,2]
[322563998,1713065451584,-968.0,0.0003245,2]
[322563999,1713065451594,-1927.561,0.0003245,2]
[322564000,1713065451604,-2466.0,0.0003245,2]
[322564001,1713065451614,-37623.0,0.0003245,2]
[322564002,1713065451624,-1008.446,0.0003245,2]
[322564003,1713065451634,-1315.0,0.0003245,2]
[322564004,1713065451644,-314.04141,0.00032498,14]
[322564005,1713065451658,-314.04141,0.00032498,12]
[322564006,1713065451668,-611.24349498,0.000326,20]
[322564007,1713065451678,-3119.6,0.00032603,2]
[322564008,1713065451688,-10439.36,0.00032603,2]
[322564009,1713065451700,-152.0,0.00032766,17]
[322564010,1713065451710,-506.67328786,0.00032876,2]
[322564011,1713065451721,-152.76,0.00032877,2]
[322564012,1713065451732,-150.0,0.00032877,30]
[322564013,1713065451742,-150.0,0.00032877,30]
[322564014,1713065451752,-150.0,0.00032877,30]
[322564015,1713065451763,-150.0,0.00032877,30]
[322564016,1713065451773,-150.0,0.00032877,30]
[322564017,1713065451782,-150.0,0.00032877,30]
[322564018,1713065451792,-150.0,0.00032877,30]
[322564019,1713065451803,-150.0,0.00032877,30]
[322564020,1713065451813,-150.0,0.00032877,30]
[322564021,1713065451823,-1166.97130669,0.0003288,2]
[322564022,1713065451838,-1166.97130669,0.0003288,2]
[322564023,1713065451848,-1166.97130669,0.0003288,2]
[322564024,1713065451858,-1166.97130669,0.0003288,2]
[322564025,1713065451868,-1166.97130669,0.0003288,2]
[322564026,1713065451883,-1166.97130669,0.0003288,2]
[322564027,1713065451895,-1166.97130669,0.0003288,2]
[322564028,1713065451907,-1166.97130669,0.0003288,2]
[322564029,1713065451918,-1166.97130669,0.0003288,2]
[322564030,1713065451929,-1166.97130669,0.0003288,2]
[322564031,1713065451938,-1166.97130669,0.0003288,2]
[322564032,1713065451948,-1166.97130669,0.0003288,2]
[322564033,1713065451958,-1166.97130669,0.0003288,2]
[322564034,1713065451967,-1166.97130669,0.0003288,2]
[322564035,1713065451978,-1166.97130669,0.0003288,2]
[322564036,1713065451988,-1166.97130669,0.0003288,2]
[322564037,1713065451998,-1166.97130669,0.0003288,2]
[322564038,1713065452008,-1166.97130669,0.0003288,2]
[322564039,1713065452018,-1166.97130669,0.0003288,2]
[322564040,1713065452028,-1167.47,0.0003288,2]
[322564041,1713065452038,-523.35762679,0.0003288,2]
[322564042,1713065452047,-523.35762679,0.0003288,2]
[322564043,1713065452058,-523.35762679,0.0003288,2]
[322564044,1713065452068,-523.35762679,0.0003288,2]
[322564045,1713065452079,-523.35762679,0.0003288,2]
[322564046,1713065452089,-523.35762679,0.0003288,2]
[322564047,1713065452099,-523.35762679,0.0003288,2]
[322564048,1713065452109,-523.35762679,0.0003288,2]
[322564049,1713065452120,-523.35762679,0.0003288,2]
[322564050,1713065452130,-523.35762679,0.0003288,2]
[322564051,1713065452141,-523.35762679,0.0003288,2]
[322564052,1713065452158,-523.35762679,0.0003288,2]
[322564053,1713065452169,-523.35762679,0.0003288,2]
[322564054,1713065452180,-523.35762679,0.0003288,2]
[322564055,1713065452191,-523.35762679,0.0003288,2]
[322564056,1713065452202,-523.35762679,0.0003288,2]
[322564057,1713065452214,-523.35762679,0.0003288,2]
[322564058,1713065452225,-523.35762679,0.0003288,2]
[322564059,1713065452236,-523.35762679,0.0003288,2]
[322564060,1713065452246,-523.85,0.0003288,2]
[322564061,1713065452257,-159.53902009,0.0003288,2]
[322564062,1713065452267,-159.53902009,0.0003288,2]
[322564063,1713065452278,-159.53902009,0.0003288,2]
[322564064,1713065452288,-159.53902009,0.0003288,2]
[322564065,1713065452299,-159.53902009,0.0003288,2]
[322564066,1713065452310,-159.53902009,0.0003288,2]
[322564067,1713065452321,-159.53902009,0.0003288,2]
[322564068,1713065452331,-159.53902009,0.0003288,2]
[322564069,1713065452342,-159.53902009,0.0003288,2]
[322564070,1713065452352,-159.53902009,0.0003288,2]
[322564071,1713065452362,-159.53902009,0.0003288,2]
[322564072,1713065452372,-159.53902009,0.0003288,2]
[322564073,1713065452384,-159.53902009,0.0003288,2]
[322564074,1713065452393,-159.53902009,0.0003288,2]
[322564075,1713065452406,-160.03,0.0003288,2]
[322564076,1713065452415,-441.82943921,0.0003288,2]
[322564077,1713065452425,-441.82943921,0.0003288,2]
[322564078,1713065452436,-441.82943921,0.0003288,2]
[322564079,1713065452446,-441.82943921,0.0003288,2]
[322564080,1713065452457,-441.82943921,0.0003288,2]
[322564081,1713065452467,-441.82943921,0.0003288,2]
[322564082,1713065452477,-441.82943921,0.0003288,2]
[322564083,1713065452487,-441.82943921,0.0003288,2]
[322564084,1713065452498,-441.82943921,0.0003288,2]
[322564085,1713065452509,-441.82943921,0.0003288,2]
[322564086,1713065452519,-441.82943921,0.0003288,2]
[322564087,1713065452529,-441.82943921,0.0003288,2]
[322564088,1713065452539,-441.82943921,0.0003288,2]
[322564089,1713065452549,-441.82943921,0.0003288,2]
[322564090,1713065452559,-441.82943921,0.0003288,2]
[322564091,1713065452569,-441.82943921,0.0003288,2]
[322564092,1713065452579,-441.82943921,0.0003288,2]
[322564093,1713065452589,-441.82943921,0.0003288,2]
[322564094,1713065452599,-441.82943921,0.0003288,2]
[322564095,1713065452609,-442.32,0.0003288,2]
[322564096,1713065452618,-279.21984514,0.000329,30]
[322564097,1713065452628,-173.0,0.0003294,18]
[322564098,1713065452637,-972.0,0.00032958,2]
[322564099,1713065452647,-534.0,0.00032958,2]
[322564100,1713065452658,-760.6410035,0.00033,4]
[322564101,1713065452667,-24329.51803062,0.00033,2]
[322564102,1713065452677,-2000.0,0.00033,3]
[322564103,1713065452687,-287.79,0.00033,6]
[322564104,1713065452697,-800.0,0.00033,3]
[322564105,1713065452706,-152.0,0.00033124,18]
[322564106,1713065452716,-326.82,0.00033165,2]
[322564107,1713065452726,-157.041411,0.00033198,16]
[322564108,1713065452736,-1125.16,0.000333,2]
[322564109,1713065452746,-908.62,0.000333,2]
[322564110,1713065452756,-259613.3497469,0.00033429,5]
[322564111,1713065452765,-152.0,0.00033482,19]
[322564112,1713065452775,-314.04141,0.00033498,15]
[322564113,1713065452785,-314.04141,0.00033498,14]
[322564114,1713065452795,-418.29,0.00033557,2]
[322564115,1713065452805,-418.29,0.00033557,2]
[322564116,1713065452815,-418.29,0.00033557,2]
[322564117,1713065452825,-418.29,0.00033557,2]
[322564118,1713065452840,-418.29,0.00033557,2]
[322564119,1713065452851,-418.29,0.00033557,2]
[322564120,1713065452861,-418.29,0.00033557,2]
[322564121,1713065452871,-418.29,0.00033557,2]
[322564122,1713065452882,-173.37,0.00033724,2]
[322564123,1713065452892,-41322.7346679,0.00033777,2]
[322564124,1713065452903,-8340.9789099,0.00033777,2]
[322564125,1713065452914,-3285.2339944,0.00033777,2]
[322564126,1713065452924,-150.0,0.00033799,30]
[322564127,1713065452934,-150.0,0.00033799,30]
[322564128,1713065452943,-150.0,0.00033799,30]
[322564129,1713065452954,-150.0,0.00033799,30]
[322564130,1713065452964,-150.0,0.00033799,30]
[322564131,1713065452974,-150.0,0.00033799,30]
[322564132,1713065452996,-150.0,0.00033799,30]
[322564133,1713065453008,-161.74044595,0.00033799,30]
[322564134,1713065453020,-316136.17369546,0.000338,3]
[322564135,1713065453031,-4239.86176631,0.000338,2]
[322564136,1713065453041,-1000.0,0.000338,2]
[322564137,1713065453051,-1000.0,0.00033838,2]
[322564138,1713065453066,-152.0,0.0003384,20]
[322564139,1713065453078,-167.09360197,0.0003384,5]
[322564140,1713065453089,-152.0,0.0003384,5]
[322564141,1713065453100,-200.0,0.0003387,7]
[322564142,1713065453111,-200.0,0.0003387,7]
[322564143,1713065453123,-204.10266395,0.0003387,7]
[322564144,1713065453134,-169972.45083864,0.00033877,2]
[322564145,1713065453145,-150.0,0.00033879,30]
[322564146,1713065453160,-150.0,0.00033879,30]
[322564147,1713065453171,-150.0,0.00033879,30]
[322564148,1713065453181,-150.0,0.00033879,30]
[322564149,1713065453192,-150.0,0.00033879,30]
[322564150,1713065453201,-609173.1827361,0.0003388,2]
[322564151,1713065454349,-8153.6,0.0003388,2]
[322564152,1713065456904,-2564.28725932,0.000208,2]
[322564153,1713065456914,-1618.2848774,0.000209,2]
[322564154,1713065456924,-151.33,0.00029,2]
[322564155,1713065456934,-151.33,0.00029,2]
[322564156,1713065456944,-151.33,0.00029,2]
[322564157,1713065457232,-151.33,0.00029,2]
[322564158,1713065457251,-151.33,0.00029,2]
[322564159,1713065457260,-151.33,0.00029,2]
[322564160,1713065457270,-151.33,0.00029,2]
[322564161,1713065457279,-151.33,0.00029,2]
[322564162,1713065457288,-151.33,0.00029,2]
[322564163,1713065457297,-151.33,0.00029,2]
[322564164,1713065457306,-13412.21314832,0.0003388,2]
[322564165,1713065457319,-10087.35596888,0.0003388,2]
[322564166,1713065457330,-16506.03104521,0.0003388,2]
[322564167,1713065457341,-6701.97758797,0.0003388,2]
[322564168,1713065457353,-841.90226371,0.0003388,2]
[322564169,1713065457365,-12128.9416331,0.0003388,2]
[322564170,1713065457377,-7181.87855742,0.0003388,2]
[322564171,1713065457389,-1752.95994701,0.0003388,2]
[322564172,1713065457411,-453.1988412,0.0003388,2]
[322564173,1713065457423,-6582.2635558,0.0003388,2]
[322564174,1713065457435,-3281.84402951,0.0003388,2]
[322564175,1713065457447,-28079.82177572,0.0003388,2]
[322564176,1713065457460,-1410.02400825,0.0003388,2]
[322564179,1713065458161,-6841.61874499,0.0003388,2]
[322564180,1713065458204,-1927.07267478,0.0003388,2]
[322564181,1713065458334,-1571.06007378,0.0003388,2]
[322564182,1713065458349,-755.17858048,0.0003388,2]
[322564183,1713065459755,-153.559,0.0002344,2]
[322564184,1713065459765,-521.03,0.00025723,2]
[322564185,1713065459774,-349.74,0.00025723,2]
[322564186,1713065459800,-162.41,0.00025723,2]
[322564187,1713065459809,-150.0,0.00029408,2]
[322564188,1713065459818,-150.0,0.00030269,2]
[322564189,1713065459828,-418.29,0.00031052,2]
[322564190,1713065459841,-150.0,0.00032877,2]
[322564191,1713065459850,-150.0,0.00033742,2]
[322564192,1713065459859,-10994.971,0.0003388,2]
[322564193,1713065459887,-273.77749137,0.0003388,2]
[322564194,1713065459898,-1436.52759672,0.0003388,2]
[322564195,1713065459917,-405.207444,0.0003388,2]
[322564196,1713065459930,-294.77619204,0.0003388,2]
[322564197,1713065463255,5314.84686723,0.0002,2]
[322564198,1713065466103,269.611831,0.00019999,2]
[322564199,1713066114718,-1300.22,0.00023211,10]
[322564231,1713066632169,-155.0,0.00020897,2]
[322564232,1713066632179,-697.94314479,0.00020898,2]
[322564233,1713066632191,-6687.54697176,0.00020898,2]
[322564234,1713066632204,-1390.80381731,0.00020898,2]
[322564235,1713066632216,-1411.7650936,0.00020898,2]
[322564236,1713066632243,-705.76,0.00020898,2]
[322564237,1713066632288,-1379.76857495,0.00020898,2]
[322564238,1713066632300,-392.73619641,0.00020898,2]
[322564239,1713066632309,-207.9719,0.000209,2]
[322564240,1713066632319,-56.54190359,0.000209,2]
[322564241,1713066632348,-443.45809641,0.000209,2]
[322564242,1713066632359,-273.30050584,0.00020999,5]
[322564243,1713066632368,-2651.38817149,0.000214,2]
[322564244,1713066632532,-541.61182851,0.000214,2]
[322564245,1713066632542,-784.24043551,0.00022,2]
[322564246,1713066632551,-272.68,0.00022519,2]
[322564247,1713066632561,-93.45013675,0.00023,3]
[322564248,1713066632573,-456.54986325,0.00023,3]
[322564249,1713066632582,-2210.58782681,0.00023211,2]
[322564250,1713066632591,-10000.0,0.00023211,2]
[322564251,1713066632602,-499.99,0.0002344,2]
[322564252,1713066632611,-150.99,0.0002344,2]
[322564253,1713066632620,-150.0,0.00024408,2]
[322564254,1713066632630,-1000.0,0.00024413,2]
[322564256,1713066632640,-23804.72,0.0002442,2]
[322564258,1713066632649,-191.22,0.00024428,2]
[322564260,1713066632658,-500.0,0.00024429,2]
[322564262,1713066632667,-2503.17,0.00024467,2]
[322564264,1713066632677,-250.0,0.00024478,2]
[322564266,1713066632687,-191.82,0.00024498,2]
[322564268,1713066632696,-200.0,0.00024502,2]
[322564270,1713066632706,-184.80168968,0.00024555,2]
[322564272,1713066632715,-250.0,0.00024608,2]
[322564274,1713066632724,-169.11,0.00024635,2]
[322564276,1713066632734,-253.33279166,0.00024728,2]
[322564277,1713066632744,-253.33279166,0.00024728,2]
[322564279,1713066632753,-253.33279166,0.00024728,2]
[322564281,1713066632763,-253.33279166,0.00024728,2]
[322564283,1713066632772,-253.33279166,0.00024728,2]
[322564285,1713066632782,-253.33279166,0.00024728,2]
[322564287,1713066632792,-1505.493,0.00024738,2]
[322564289,1713066632801,-459.077,0.00024738,2]
[322564291,1713066632810,-963.373,0.00024738,2]
[322564293,1713066632819,-150.0,0.00024738,2]
[322564295,1713066632828,-541.0,0.00024738,2]
[322564297,1713066632838,-1261.0,0.00024738,2]
[322564299,1713066632847,-1228.0,0.00024738,2]
[322564301,1713066632860,-280.0,0.00024738,2]
[322564303,1713066632869,-1948.0,0.00024738,2]
[322564305,1713066632878,-436.0,0.00024738,2]
[322564307,1713066632887,-608.0,0.00024738,2]
[322564309,1713066632896,-1526.058,0.00024738,2]
[322564311,1713066632905,-1361.211,0.00024738,2]
[322564313,1713066632914,-1098.254,0.00024738,2]
[322564315,1713066632924,-399.0,0.00024738,2]
[322564317,1713066632933,-2440.0,0.00024738,2]
[322564319,1713066632941,-214.0,0.00024738,2]
[322564321,1713066632950,-355.0,0.00024738,2]
[322564323,1713066632960,-443.0,0.00024738,2]
[322564325,1713066632968,-4803.0,0.00024738,2]
[322564327,1713066632977,-37623.0,0.00024738,2]
[322564329,1713066632987,-2466.0,0.00024738,2]
[322564331,1713066632996,-5719.0,0.00024738,2]
[322564333,1713066633005,-1054.0,0.00024738,2]
[322564335,1713066633014,-272.68,0.00024783,2]
[322564336,1713066633023,-253.33279166,0.0002499,2]
[322564338,1713066633033,-253.33279166,0.0002499,2]
[322564340,1713066633043,-253.33279166,0.0002499,2]
[322564342,1713066633053,-253.33279166,0.0002499,2]
[322564344,1713066633063,-253.33279166,0.0002499,2]
[322564346,1713066633072,-253.33279166,0.0002499,2]
[322564348,1713066633081,-253.33279166,0.0002499,2]
[322564350,1713066633090,-7418.91224067,0.00025,7]
[322564352,1713066633103,-9841.5070997,0.00025,4]
[322564354,1713066633115,-2605.45039561,0.00025,2]
[322564356,1713066633125,-563.08685838,0.00025,2]
[322564359,1713066633135,-600.0,0.00025,3]
[322564360,1713066633145,-155.0,0.00025,2]
[322564361,1713066633155,-253.33279166,0.00025015,2]
[322564362,1713066633164,-174.84,0.0002513,2]
[322564363,1713066633174,-158.95,0.00025145,2]
[322564364,1713066633183,-158.95,0.00025155,2]
[322564366,1713066633194,-158.95,0.00025164,2]
[322564368,1713066633203,-158.95,0.00025174,2]
[322564369,1713066633212,-158.95,0.00025184,2]
[322564371,1713066633224,-158.95,0.00025193,2]
[322564373,1713066633234,-158.95,0.00025203,2]
[322564374,1713066633243,-158.95,0.00025213,2]
[322564375,1713066633253,-158.95,0.00025222,2]
[322564376,1713066633262,-158.95,0.00025232,2]
[322564377,1713066633271,-158.95,0.00025242,2]
[322564378,1713066633280,-158.95,0.00025251,2]
[322564379,1713066633290,-158.95,0.00025261,2]
[322564380,1713066633299,-158.95,0.00025271,2]
[322564381,1713066633309,-253.33279166,0.000254,2]
[322564382,1713066633320,-167.0,0.0002541,2]
[322564383,1713066633329,-1671.81930336,0.00025895,28]
[322564384,1713066633338,-861.44696125,0.00026139,2]
[322564385,1713066633347,-167.0,0.00026249,2]
[322564386,1713066633361,-156.14819749,0.0002632,2]
[322564387,1713066633370,-156.14819749,0.0002632,2]
[322564388,1713066633379,-4484.95730898,0.0002633,2]
[322564389,1713066633388,-156.14819749,0.00026409,2]
[322564390,1713066633398,-253.33279166,0.0002642,2]
[322564391,1713066633407,-174.84,0.00026512,2]
[322564392,1713066633417,-411.38572526,0.00026778,2]
[322564393,1713066633426,-156.14819749,0.00026868,2]
[322564394,1713066633435,-156.14819749,0.00026868,2]
[322564395,1713066633446,-253.33279166,0.00026876,2]
[322564396,1713066633455,-253.33279166,0.00026878,2]
[322564397,1713066633465,-253.33279166,0.00026878,2]
[322564398,1713066633474,-253.33279166,0.00026878,2]
[322564399,1713066633483,-253.33279166,0.00026878,2]
[322564400,1713066633493,-253.33279166,0.00026878,2]
[322564401,1713066633502,-253.33279166,0.00026878,2]
[322564402,1713066633512,-156.14819749,0.00026878,2]
[322564403,1713066633521,-156.14819749,0.00026878,2]
[322564404,1713066633530,-156.14819749,0.00026878,2]
[322564405,1713066633540,-156.14819749,0.00026878,2]
[322564406,1713066633550,-156.14819749,0.00026878,2]
[322564407,1713066633561,-156.14819749,0.00026878,2]
[322564408,1713066633571,-156.14819749,0.00026878,2]
[322564409,1713066633580,-156.14819749,0.00026878,2]
[322564410,1713066633589,-156.14819749,0.00026878,2]
[322564411,1713066633600,-156.14819749,0.00026878,2]
[322564412,1713066633609,-156.14819749,0.00026878,2]
[322564413,1713066633618,-253.33279166,0.00026888,2]
[322564414,1713066633627,-253.33279166,0.00026888,2]
[322564415,1713066633637,-253.33279166,0.00026888,2]
[322564416,1713066633646,-253.33279166,0.00026888,2]
[322564417,1713066633655,-253.33279166,0.00026888,2]
[322564418,1713066633665,-253.33279166,0.00026888,2]
[322564419,1713066633674,-253.33279166,0.00026888,2]
[322564420,1713066633683,-253.33279166,0.00026888,2]
[322564421,1713066633691,-253.33279166,0.00026888,2]
[322564422,1713066633700,-253.33279166,0.00026888,2]
[322564423,1713066633709,-253.33279166,0.00026888,2]
[322564424,1713066633717,-253.33279166,0.00026888,2]
[322564425,1713066633726,-253.33279166,0.00026888,2]
[322564426,1713066633735,-253.33279166,0.00026888,2]
[322564427,1713066633743,-253.33279166,0.00026888,2]
[322564428,1713066633752,-253.33279166,0.00026888,2]
[322564429,1713066633762,-253.33279166,0.00026888,2]
[322564430,1713066633771,-253.33279166,0.00026888,2]
[322564431,1713066633780,-253.33279166,0.00026888,2]
[322564432,1713066633788,-253.33279166,0.00026888,2]
[322564433,1713066633797,-253.33279166,0.00026888,2]
[322564434,1713066633806,-253.33279166,0.00026888,2]
[322564435,1713066633815,-253.33279166,0.00026888,2]
[322564436,1713066633824,-253.33279166,0.00026888,2]
[322564437,1713066633833,-253.33279166,0.00026888,2]
[322564438,1713066633841,-253.33279166,0.00026888,2]
[322564439,1713066633851,-253.33279166,0.00026888,2]
[322564440,1713066633860,-156.14819749,0.00026888,2]
[322564441,1713066633869,-156.14819749,0.00026888,2]
[322564442,1713066633878,-156.14819749,0.00026888,2]
[322564443,1713066633887,-156.14819749,0.00026888,2]
[322564444,1713066633896,-156.14819749,0.00026888,2]
[322564445,1713066633904,-156.14819749,0.00026888,2]
[322564446,1713066633914,-156.14819749,0.00026888,2]
[322564447,1713066633924,-156.14819749,0.00026888,2]
[322564448,1713066633934,-156.14819749,0.00026888,2]
[322564449,1713066633943,-156.14819749,0.00026888,2]
[322564450,1713066633952,-156.14819749,0.00026888,2]
[322564451,1713066633963,-156.14819749,0.00026888,2]
[322564452,1713066633972,-156.14819749,0.00026888,2]